[Event "Late-Titled-Tuesday-Blitz-September-05-2023"]
[Site "Chess.com"]
[Date "2023.09.05"]
[Round "9"]
[White "GianmarcoVaR"]
[Black "KNVB"]
[Result "1-0"]
[WhiteElo "2627"]
[BlackElo "2709"]
[TimeControl "180+1"]
[EndTime "15:46:01 PDT"]
[Termination "GianmarcoVaR won by checkmate"]

1. g3 {[%clk 0:03:00.9]} 1... d5 {[%clk 0:02:56.4]} 2. Bg2 {[%clk 0:03:00.7]}
2... c6 {[%clk 0:02:56.6]} 3. d3 {[%clk 0:03:01]} 3... e5 {[%clk 0:02:56.4]} 4.
a3 {[%clk 0:03:00]} 4... Nf6 {[%clk 0:02:56.2]} 5. b4 {[%clk 0:02:59.5]} 5...
Bd6 {[%clk 0:02:56.4]} 6. Bb2 {[%clk 0:02:59.2]} 6... O-O {[%clk 0:02:55.1]} 7.
c4 {[%clk 0:02:58.8]} 7... Re8 {[%clk 0:02:37.9]} 8. Nf3 {[%clk 0:02:51.9]} 8...
a5 {[%clk 0:02:36]} 9. O-O {[%clk 0:02:28.3]} 9... axb4 {[%clk 0:02:05.9]} 10.
axb4 {[%clk 0:02:28.5]} 10... Rxa1 {[%clk 0:02:06.8]} 11. Bxa1 {[%clk 0:02:29]}
11... dxc4 {[%clk 0:02:07.7]} 12. dxc4 {[%clk 0:02:27.7]} 12... e4 {[%clk
0:02:08.5]} 13. Ng5 {[%clk 0:02:06.9]} 13... Bxb4 {[%clk 0:01:42.8]} 14. Qb3
{[%clk 0:01:28.8]} 14... Bf8 {[%clk 0:01:17.4]} 15. Rd1 {[%clk 0:01:00.8]} 15...
Nbd7 {[%clk 0:01:06.9]} 16. e3 {[%clk 0:00:46]} 16... Nc5 {[%clk 0:00:40.2]} 17.
Rxd8 {[%clk 0:00:43.6]} 17... Nxb3 {[%clk 0:00:40.4]} 18. Bxf6 {[%clk
0:00:43.9]} 18... Rxd8 {[%clk 0:00:36.8]} 19. Bxd8 {[%clk 0:00:44.2]} 19... f5
{[%clk 0:00:37.4]} 20. h4 {[%clk 0:00:34.8]} 20... h6 {[%clk 0:00:21.7]} 21. Nh3
{[%clk 0:00:34.7]} 21... g6 {[%clk 0:00:22.3]} 22. Nf4 {[%clk 0:00:16.7]} 22...
Kf7 {[%clk 0:00:22.5]} 23. g4 {[%clk 0:00:11.7]} 23... Bd6 {[%clk 0:00:09.9]}
24. h5 {[%clk 0:00:07.7]} 24... g5 {[%clk 0:00:08]} 25. Ne2 {[%clk 0:00:08.1]}
25... fxg4 {[%clk 0:00:07.1]} 26. Nbc3 {[%clk 0:00:06.4]} 26... Nd2 {[%clk
0:00:06.7]} 27. Nxe4 {[%clk 0:00:06.5]} 27... Nxc4 {[%clk 0:00:07]} 28. Nxd6+
{[%clk 0:00:05.9]} 28... Nxd6 {[%clk 0:00:07.9]} 29. Bb6 {[%clk 0:00:05.9]}
29... Be6 {[%clk 0:00:03.2]} 30. Ng3 {[%clk 0:00:06]} 30... Kg8 {[%clk
0:00:02.2]} 31. Bc5 {[%clk 0:00:06]} 31... Nf5 {[%clk 0:00:01.9]} 32. Nxf5
{[%clk 0:00:05.6]} 32... Bxf5 {[%clk 0:00:02.8]} 33. Kh2 {[%clk 0:00:05]} 33...
Be6 {[%clk 0:00:02.9]} 34. Kg3 {[%clk 0:00:05.5]} 34... Kf7 {[%clk 0:00:02.4]}
35. Bf1 {[%clk 0:00:05.7]} 35... b5 {[%clk 0:00:02.1]} 36. Be2 {[%clk 0:00:06]}
36... Kf6 {[%clk 0:00:02]} 37. Bxg4 {[%clk 0:00:06.1]} 37... Bxg4 {[%clk
0:00:02.2]} 38. Kxg4 {[%clk 0:00:06.6]} 38... Ke5 {[%clk 0:00:02.8]} 39. f4+
{[%clk 0:00:06.9]} 39... gxf4 {[%clk 0:00:03]} 40. exf4+ {[%clk 0:00:07.5]}
40... Kd5 {[%clk 0:00:03.9]} 41. Bf8 {[%clk 0:00:07.8]} 41... c5 {[%clk
0:00:04.1]} 42. f5 {[%clk 0:00:08.1]} 42... b4 {[%clk 0:00:02.2]} 43. Bxh6
{[%clk 0:00:08.2]} 43... c4 {[%clk 0:00:02.4]} 44. Bg7 {[%clk 0:00:02.2]} 44...
c3 {[%clk 0:00:01.7]} 45. h6 {[%clk 0:00:02.7]} 45... c2 {[%clk 0:00:01.2]} 46.
Bb2 {[%clk 0:00:03.1]} 46... Kc4 {[%clk 0:00:01.4]} 47. h7 {[%clk 0:00:03.4]}
47... Kb3 {[%clk 0:00:02.3]} 48. h8=Q {[%clk 0:00:03.4]} 48... Ka2 {[%clk
0:00:02.8]} 49. Bc1 {[%clk 0:00:03.6]} 49... Kb3 {[%clk 0:00:03.2]} 50. Qb2+
{[%clk 0:00:04]} 50... Kc4 {[%clk 0:00:03.7]} 51. f6 {[%clk 0:00:04.6]} 51... b3
{[%clk 0:00:03.7]} 52. f7 {[%clk 0:00:05.1]} 52... Kd3 {[%clk 0:00:04.5]} 53.
f8=Q {[%clk 0:00:05.6]} 53... Ke2 {[%clk 0:00:05.4]} 54. Qf3+ {[%clk 0:00:05.3]}
54... Ke1 {[%clk 0:00:05.8]} 55. Qbc3# {[%clk 0:00:05.5]} 1-0

[Event "Late-Titled-Tuesday-Blitz-September-05-2023"]
[Site "Chess.com"]
[Date "2023.09.05"]
[Round "9"]
[White "jcibarra"]
[Black "tptagain"]
[Result "1-0"]
[WhiteElo "2912"]
[BlackElo "2969"]
[TimeControl "180+1"]
[EndTime "15:46:04 PDT"]
[Termination "jcibarra won on time"]

1. e4 {[%clk 0:03:00.9]} 1... c6 {[%clk 0:03:00.3]} 2. Nf3 {[%clk 0:03:00.5]}
2... d5 {[%clk 0:03:00.8]} 3. d3 {[%clk 0:03:01.2]} 3... g6 {[%clk 0:03:00.9]}
4. Qe2 {[%clk 0:03:00.8]} 4... Bg7 {[%clk 0:03:00.7]} 5. g3 {[%clk 0:03:00.8]}
5... Nh6 {[%clk 0:03:00.2]} 6. Bg2 {[%clk 0:02:58.6]} 6... O-O {[%clk
0:03:00.4]} 7. e5 {[%clk 0:02:54]} 7... c5 {[%clk 0:02:50.6]} 8. O-O {[%clk
0:02:53.3]} 8... Nc6 {[%clk 0:02:49.5]} 9. Bf4 {[%clk 0:02:49.8]} 9... Bg4
{[%clk 0:02:39.1]} 10. c3 {[%clk 0:02:44.8]} 10... Nf5 {[%clk 0:02:30.8]} 11.
Nbd2 {[%clk 0:02:37.4]} 11... h6 {[%clk 0:02:08.9]} 12. h3 {[%clk 0:02:32.5]}
12... Bxf3 {[%clk 0:02:08.8]} 13. Nxf3 {[%clk 0:02:33.4]} 13... g5 {[%clk
0:01:55.8]} 14. Bc1 {[%clk 0:02:13]} 14... e6 {[%clk 0:01:55]} 15. Rd1 {[%clk
0:01:58.9]} 15... f6 {[%clk 0:01:39.6]} 16. exf6 {[%clk 0:01:52.5]} 16... Qxf6
{[%clk 0:01:40.5]} 17. Re1 {[%clk 0:01:42.6]} 17... Rae8 {[%clk 0:01:40.5]} 18.
Nh2 {[%clk 0:01:41.6]} 18... Kh8 {[%clk 0:01:11.6]} 19. Bd2 {[%clk 0:01:29.6]}
19... b5 {[%clk 0:01:07.3]} 20. a3 {[%clk 0:01:26.4]} 20... c4 {[%clk
0:01:01.4]} 21. dxc4 {[%clk 0:01:22.1]} 21... bxc4 {[%clk 0:01:01.3]} 22. Rad1
{[%clk 0:01:18.8]} 22... Na5 {[%clk 0:00:45.4]} 23. Ng4 {[%clk 0:01:17.4]} 23...
Qg6 {[%clk 0:00:43.4]} 24. Ne5 {[%clk 0:01:17.7]} 24... Bxe5 {[%clk 0:00:30.7]}
25. Qxe5+ {[%clk 0:01:17.5]} 25... Qg7 {[%clk 0:00:31.1]} 26. Qe2 {[%clk
0:01:06.2]} 26... Nb3 {[%clk 0:00:30]} 27. Be3 {[%clk 0:01:06.3]} 27... a5
{[%clk 0:00:24.3]} 28. Bf3 {[%clk 0:01:02.9]} 28... Nxe3 {[%clk 0:00:19]} 29.
Qxe3 {[%clk 0:01:03]} 29... Qf6 {[%clk 0:00:18.7]} 30. Bh5 {[%clk 0:00:59.9]}
30... Re7 {[%clk 0:00:19.2]} 31. Re2 {[%clk 0:00:58]} 31... Rb8 {[%clk
0:00:06.7]} 32. Rxd5 {[%clk 0:00:51.2]} 32... exd5 {[%clk 0:00:07.6]} 33. Qxe7
{[%clk 0:00:51.2]} 33... Qxe7 {[%clk 0:00:08.5]} 34. Rxe7 {[%clk 0:00:51.5]}
34... Nc5 {[%clk 0:00:08.8]} 35. Bf7 {[%clk 0:00:50.9]} 35... Rxb2 {[%clk
0:00:06.7]} 36. Bxd5 {[%clk 0:00:51.1]} 36... Nd3 {[%clk 0:00:04.3]} 37. Bxc4
{[%clk 0:00:44]} 37... Nxf2 {[%clk 0:00:04.2]} 38. Re2 {[%clk 0:00:24.8]} 38...
Nd1 {[%clk 0:00:02.9]} 39. Rxb2 {[%clk 0:00:20.5]} 39... Nxb2 {[%clk 0:00:03.8]}
40. Bb5 {[%clk 0:00:21.1]} 40... Kg7 {[%clk 0:00:04.5]} 41. Kf1 {[%clk
0:00:20.5]} 41... Nd1 {[%clk 0:00:05.2]} 42. c4 {[%clk 0:00:20.5]} 42... Kf6
{[%clk 0:00:03.9]} 43. Ke2 {[%clk 0:00:20.4]} 43... Nc3+ {[%clk 0:00:04.1]} 44.
Kd3 {[%clk 0:00:20.5]} 44... Nd1 {[%clk 0:00:03.4]} 45. Kd4 {[%clk 0:00:20.1]}
45... Nf2 {[%clk 0:00:03.1]} 46. Kc5 {[%clk 0:00:18.4]} 46... Nxh3 {[%clk
0:00:02.1]} 47. Kb6 {[%clk 0:00:19.1]} 47... Nf2 {[%clk 0:00:02.1]} 48. c5
{[%clk 0:00:19.5]} 48... Ne4 {[%clk 0:00:01.8]} 49. c6 {[%clk 0:00:20.2]} 49...
Nd6 {[%clk 0:00:01.4]} 50. c7 {[%clk 0:00:20.2]} 50... Ke7 {[%clk 0:00:02.2]}
51. Kc6 {[%clk 0:00:19.1]} 51... h5 {[%clk 0:00:02.6]} 52. Be2 {[%clk
0:00:18.9]} 52... h4 {[%clk 0:00:03.1]} 53. gxh4 {[%clk 0:00:19.7]} 53... gxh4
{[%clk 0:00:04]} 54. Bg4 {[%clk 0:00:19.2]} 54... a4 {[%clk 0:00:04.6]} 55. Bh3
{[%clk 0:00:19.3]} 1-0

[Event "Late-Titled-Tuesday-Blitz-September-05-2023"]
[Site "Chess.com"]
[Date "2023.09.05"]
[Round "9"]
[White "Russian_berezka"]
[Black "SaqoChess_Twitch"]
[Result "1-0"]
[WhiteElo "2621"]
[BlackElo "2743"]
[TimeControl "180+1"]
[EndTime "15:46:10 PDT"]
[Termination "Russian_berezka won by checkmate"]

1. d4 {[%clk 0:03:00.9]} 1... d5 {[%clk 0:02:58.4]} 2. Bf4 {[%clk 0:03:01.5]}
2... Nf6 {[%clk 0:02:56]} 3. e3 {[%clk 0:03:02]} 3... c5 {[%clk 0:02:55.2]} 4.
c3 {[%clk 0:03:02.5]} 4... e6 {[%clk 0:02:53.5]} 5. Nd2 {[%clk 0:03:02.8]} 5...
Nc6 {[%clk 0:02:53.6]} 6. Bd3 {[%clk 0:03:02.5]} 6... cxd4 {[%clk 0:02:53.2]} 7.
exd4 {[%clk 0:03:01.6]} 7... Bd6 {[%clk 0:02:49.5]} 8. Bg3 {[%clk 0:03:01.5]}
8... O-O {[%clk 0:02:47.7]} 9. Ngf3 {[%clk 0:03:01.5]} 9... Rb8 {[%clk
0:02:44.5]} 10. Qe2 {[%clk 0:02:54.9]} 10... Qc7 {[%clk 0:02:44.4]} 11. O-O
{[%clk 0:02:53.6]} 11... Bxg3 {[%clk 0:02:42]} 12. hxg3 {[%clk 0:02:53.4]} 12...
a6 {[%clk 0:02:39.2]} 13. Ne5 {[%clk 0:02:43.5]} 13... Nxe5 {[%clk 0:02:38.7]}
14. dxe5 {[%clk 0:02:44.4]} 14... Nd7 {[%clk 0:02:38.2]} 15. Nf3 {[%clk
0:02:44.9]} 15... h6 {[%clk 0:02:34.6]} 16. Rfe1 {[%clk 0:02:44.1]} 16... b5
{[%clk 0:02:34.6]} 17. a3 {[%clk 0:02:44]} 17... Bb7 {[%clk 0:02:34.8]} 18. Nd4
{[%clk 0:02:44]} 18... Nc5 {[%clk 0:02:34.3]} 19. f4 {[%clk 0:02:39]} 19... Nxd3
{[%clk 0:02:21.7]} 20. Qxd3 {[%clk 0:02:39.9]} 20... Qc4 {[%clk 0:02:20.3]} 21.
Qxc4 {[%clk 0:02:24.2]} 21... bxc4 {[%clk 0:02:13.2]} 22. Rad1 {[%clk
0:02:24.7]} 22... a5 {[%clk 0:02:11]} 23. Rd2 {[%clk 0:02:24.3]} 23... Bc8
{[%clk 0:02:06.5]} 24. Kh2 {[%clk 0:02:15.8]} 24... h5 {[%clk 0:02:05.8]} 25.
Kh3 {[%clk 0:02:14.9]} 25... g6 {[%clk 0:02:06]} 26. g4 {[%clk 0:02:14.2]} 26...
hxg4+ {[%clk 0:02:05.6]} 27. Kxg4 {[%clk 0:02:15.1]} 27... Kg7 {[%clk
0:02:06.2]} 28. g3 {[%clk 0:01:57.7]} 28... Rh8 {[%clk 0:02:05]} 29. Ree2 {[%clk
0:01:55.6]} 29... Bd7 {[%clk 0:02:03.1]} 30. Rh2 {[%clk 0:01:54.9]} 30... Ba4
{[%clk 0:01:52.7]} 31. Kf3 {[%clk 0:01:46.5]} 31... Bd1+ {[%clk 0:01:45.9]} 32.
Ke3 {[%clk 0:01:46.4]} 32... Bg4 {[%clk 0:01:33]} 33. Nc6 {[%clk 0:01:37.4]}
33... Rxh2 {[%clk 0:01:31.9]} 34. Rxh2 {[%clk 0:01:38.3]} 34... Ra8 {[%clk
0:01:29.9]} 35. Kd4 {[%clk 0:01:36]} 35... Bd1 {[%clk 0:01:20]} 36. Ke3 {[%clk
0:01:20.9]} 36... Ba4 {[%clk 0:01:19.7]} 37. Nd4 {[%clk 0:01:20.7]} 37... Rb8
{[%clk 0:01:18.3]} 38. g4 {[%clk 0:01:20.1]} 38... Rb6 {[%clk 0:01:14.1]} 39. g5
{[%clk 0:01:20.1]} 39... Rb8 {[%clk 0:01:13.5]} 40. Nf3 {[%clk 0:01:18.6]} 40...
Rc8 {[%clk 0:01:10.6]} 41. Kd4 {[%clk 0:01:15.5]} 41... Rc7 {[%clk 0:01:10.1]}
42. Rg2 {[%clk 0:01:10.2]} 42... Kf8 {[%clk 0:01:07.2]} 43. Nh2 {[%clk 0:01:09]}
43... Ke7 {[%clk 0:01:07.8]} 44. Ng4 {[%clk 0:01:09.6]} 44... Kd7 {[%clk
0:01:04]} 45. Nf6+ {[%clk 0:01:08.2]} 45... Kc6 {[%clk 0:01:04.2]} 46. Ne8
{[%clk 0:01:06.5]} 46... Rb7 {[%clk 0:01:03.8]} 47. Nd6 {[%clk 0:01:06.6]} 47...
Rc7 {[%clk 0:00:56.5]} 48. Rh2 {[%clk 0:01:05.5]} 48... Rd7 {[%clk 0:00:33.2]}
49. Rh8 {[%clk 0:01:03.2]} 49... Bc2 {[%clk 0:00:26.7]} 50. Rc8+ {[%clk
0:01:00.2]} 50... Kb6 {[%clk 0:00:25.6]} 51. Rf8 {[%clk 0:00:57.8]} 51... Bf5
{[%clk 0:00:20.7]} 52. Nxf7 {[%clk 0:00:52.3]} 52... Kb5 {[%clk 0:00:16.5]} 53.
Nd6+ {[%clk 0:00:48.1]} 53... Ka4 {[%clk 0:00:16.9]} 54. Rb8 {[%clk 0:00:28.2]}
54... Rh7 {[%clk 0:00:14.9]} 55. Rb6 {[%clk 0:00:26.9]} 55... Rh4 {[%clk
0:00:14.2]} 56. Nc8 {[%clk 0:00:18.8]} 56... Rxf4+ {[%clk 0:00:13.5]} 57. Kc5
{[%clk 0:00:19.5]} 57... Re4 {[%clk 0:00:07.1]} 58. Rb5 {[%clk 0:00:19.4]} 58...
d4 {[%clk 0:00:04.7]} 59. Nb6# {[%clk 0:00:19.8]} 1-0

[Event "Late-Titled-Tuesday-Blitz-September-05-2023"]
[Site "Chess.com"]
[Date "2023.09.05"]
[Round "9"]
[White "ninguno46"]
[Black "Grossboss19"]
[Result "0-1"]
[WhiteElo "2592"]
[BlackElo "2506"]
[TimeControl "180+1"]
[EndTime "15:46:10 PDT"]
[Termination "Grossboss19 won by resignation"]

1. c4 {[%clk 0:02:59.9]} 1... c6 {[%clk 0:02:56.8]} 2. g3 {[%clk 0:02:58.1]}
2... Nf6 {[%clk 0:02:57.7]} 3. Bg2 {[%clk 0:02:57.5]} 3... d5 {[%clk 0:02:58.6]}
4. Nf3 {[%clk 0:02:57.3]} 4... g6 {[%clk 0:02:57.2]} 5. b3 {[%clk 0:02:56.8]}
5... Bg7 {[%clk 0:02:57.8]} 6. Bb2 {[%clk 0:02:57.1]} 6... O-O {[%clk
0:02:58.4]} 7. O-O {[%clk 0:02:57.2]} 7... Re8 {[%clk 0:02:58]} 8. d3 {[%clk
0:02:56.8]} 8... Nbd7 {[%clk 0:02:57.8]} 9. Nbd2 {[%clk 0:02:55.5]} 9... e5
{[%clk 0:02:54.4]} 10. cxd5 {[%clk 0:02:54.9]} 10... cxd5 {[%clk 0:02:48.5]} 11.
Qc2 {[%clk 0:02:50.5]} 11... b6 {[%clk 0:02:43]} 12. e4 {[%clk 0:02:48.3]} 12...
Bb7 {[%clk 0:02:37.1]} 13. Rac1 {[%clk 0:02:45.1]} 13... Rc8 {[%clk 0:02:33.4]}
14. Qb1 {[%clk 0:02:44.2]} 14... d4 {[%clk 0:02:28.8]} 15. Nc4 {[%clk
0:02:40.2]} 15... Bf8 {[%clk 0:02:27]} 16. Bh3 {[%clk 0:02:30.8]} 16... Rc7
{[%clk 0:02:16.2]} 17. a4 {[%clk 0:02:26.1]} 17... a6 {[%clk 0:02:09.4]} 18.
Rfe1 {[%clk 0:02:20.5]} 18... b5 {[%clk 0:02:04.4]} 19. Ncd2 {[%clk 0:02:13.7]}
19... Nc5 {[%clk 0:01:53.9]} 20. axb5 {[%clk 0:02:11.1]} 20... axb5 {[%clk
0:01:50.3]} 21. Bf1 {[%clk 0:02:04.1]} 21... Bh6 {[%clk 0:01:49.4]} 22. Rc2
{[%clk 0:02:02.7]} 22... Na6 {[%clk 0:01:45.4]} 23. Ba3 {[%clk 0:01:56.8]} 23...
Re6 {[%clk 0:01:23.4]} 24. Rxc7 {[%clk 0:01:54.4]} 24... Qxc7 {[%clk 0:01:20.5]}
25. Rc1 {[%clk 0:01:54.4]} 25... Rc6 {[%clk 0:01:19.9]} 26. Rxc6 {[%clk
0:01:54]} 26... Bxc6 {[%clk 0:01:18.8]} 27. Qc2 {[%clk 0:01:35.9]} 27... Nd7
{[%clk 0:01:16.6]} 28. Bh3 {[%clk 0:01:27.8]} 28... f6 {[%clk 0:01:03.6]} 29.
Qa2 {[%clk 0:01:19.1]} 29... b4 {[%clk 0:00:52.1]} 30. Bb2 {[%clk 0:01:17]}
30... Nac5 {[%clk 0:00:51.3]} 31. Bf1 {[%clk 0:00:59.2]} 31... Bf8 {[%clk
0:00:47.9]} 32. Nc4 {[%clk 0:00:56.4]} 32... Kg7 {[%clk 0:00:46.9]} 33. Bc1
{[%clk 0:00:52.2]} 33... Qb8 {[%clk 0:00:42.7]} 34. Bd2 {[%clk 0:00:49.6]} 34...
Ne6 {[%clk 0:00:36.1]} 35. Qa6 {[%clk 0:00:38.8]} 35... Qb7 {[%clk 0:00:32.8]}
36. Qa5 {[%clk 0:00:35.1]} 36... Qb5 {[%clk 0:00:25.7]} 37. Qa7 {[%clk
0:00:31.3]} 37... Qb7 {[%clk 0:00:25.3]} 38. Qa5 {[%clk 0:00:30.2]} 38... Nb8
{[%clk 0:00:22.9]} 39. Nh4 {[%clk 0:00:20.2]} 39... Bc5 {[%clk 0:00:20.6]} 40.
Bh3 {[%clk 0:00:18.7]} 40... f5 {[%clk 0:00:19]} 41. exf5 {[%clk 0:00:17.8]}
41... gxf5 {[%clk 0:00:15.4]} 42. Nxf5+ {[%clk 0:00:16.7]} 42... Kf6 {[%clk
0:00:15.1]} 43. Nfd6 {[%clk 0:00:16.1]} 43... Bxd6 {[%clk 0:00:13]} 44. Nxd6
{[%clk 0:00:16.1]} 44... Qa8 {[%clk 0:00:11.8]} 45. Qxb4 {[%clk 0:00:13.2]}
45... Qa1+ {[%clk 0:00:11.6]} 46. Be1 {[%clk 0:00:13.7]} 46... Na6 {[%clk
0:00:11.2]} 47. Qd2 {[%clk 0:00:10.9]} 47... Nac5 {[%clk 0:00:09.2]} 48. Qh6+
{[%clk 0:00:10.5]} 48... Ke7 {[%clk 0:00:09.7]} 49. Nf5+ {[%clk 0:00:10.8]}
49... Kd7 {[%clk 0:00:09.5]} 50. Qd2 {[%clk 0:00:09.5]} 50... Nxd3 {[%clk
0:00:06.8]} 51. Ng7 {[%clk 0:00:08]} 51... Nxe1 {[%clk 0:00:05.4]} 52. Bxe6+
{[%clk 0:00:07.9]} 52... Kc7 {[%clk 0:00:05.5]} 53. Qa5+ {[%clk 0:00:04.2]}
53... Qxa5 {[%clk 0:00:04.4]} 0-1

[Event "Late-Titled-Tuesday-Blitz-September-05-2023"]
[Site "Chess.com"]
[Date "2023.09.05"]
[Round "9"]
[White "Aradhya2000"]
[Black "SCIM"]
[Result "0-1"]
[WhiteElo "2705"]
[BlackElo "2598"]
[TimeControl "180+1"]
[EndTime "15:46:11 PDT"]
[Termination "SCIM won by resignation"]

1. d4 {[%clk 0:03:00.9]} 1... d5 {[%clk 0:02:59.1]} 2. c4 {[%clk 0:03:01.1]}
2... e6 {[%clk 0:02:59.4]} 3. Nc3 {[%clk 0:03:00.9]} 3... a6 {[%clk 0:02:59.1]}
4. cxd5 {[%clk 0:02:59.6]} 4... exd5 {[%clk 0:03:00]} 5. Bf4 {[%clk 0:02:59.9]}
5... Nf6 {[%clk 0:02:53.5]} 6. e3 {[%clk 0:03:00]} 6... Bd6 {[%clk 0:02:52.9]}
7. Bg5 {[%clk 0:03:00]} 7... c6 {[%clk 0:02:50.9]} 8. Bd3 {[%clk 0:03:00]} 8...
Be6 {[%clk 0:02:49.2]} 9. f4 {[%clk 0:02:59.5]} 9... h6 {[%clk 0:02:43.7]} 10.
Bh4 {[%clk 0:02:59.4]} 10... g5 {[%clk 0:02:35.7]} 11. fxg5 {[%clk 0:02:59.6]}
11... hxg5 {[%clk 0:02:36.5]} 12. Bxg5 {[%clk 0:02:59.2]} 12... Nbd7 {[%clk
0:02:28.9]} 13. Nf3 {[%clk 0:02:56.9]} 13... Qc7 {[%clk 0:02:24.4]} 14. h3
{[%clk 0:01:56.4]} 14... O-O-O {[%clk 0:02:22.1]} 15. Qd2 {[%clk 0:01:56.1]}
15... Bg3+ {[%clk 0:02:18.3]} 16. Kd1 {[%clk 0:01:56.3]} 16... Rdg8 {[%clk
0:02:15.5]} 17. Rf1 {[%clk 0:01:56.1]} 17... Kb8 {[%clk 0:01:57.1]} 18. Ne2
{[%clk 0:01:53.9]} 18... Bd6 {[%clk 0:01:41.9]} 19. Qc2 {[%clk 0:01:47.6]} 19...
Ne4 {[%clk 0:01:36.9]} 20. Bxe4 {[%clk 0:01:47.3]} 20... dxe4 {[%clk 0:01:37.8]}
21. Qxe4 {[%clk 0:01:47.3]} 21... Bd5 {[%clk 0:01:31.3]} 22. Qf5 {[%clk
0:01:47.2]} 22... Be6 {[%clk 0:01:12.8]} 23. Qd3 {[%clk 0:01:44.7]} 23... Qb6
{[%clk 0:00:56]} 24. Kc1 {[%clk 0:01:14.4]} 24... Ka8 {[%clk 0:00:51.3]} 25. Bf4
{[%clk 0:01:13.2]} 25... c5 {[%clk 0:00:40.5]} 26. Rf2 {[%clk 0:01:09.7]} 26...
cxd4 {[%clk 0:00:35.6]} 27. Nfxd4 {[%clk 0:01:08.2]} 27... Rc8+ {[%clk
0:00:33.5]} 28. Nc3 {[%clk 0:01:05.8]} 28... Nc5 {[%clk 0:00:26.7]} 29. Qc2
{[%clk 0:01:05.7]} 29... Bc4 {[%clk 0:00:21]} 30. Rd2 {[%clk 0:00:51.7]} 30...
Bxf4 {[%clk 0:00:20.5]} 31. exf4 {[%clk 0:00:51.6]} 31... Rhd8 {[%clk
0:00:21.4]} 32. Nf3 {[%clk 0:00:42.8]} 32... Nd3+ {[%clk 0:00:20.8]} 33. Kb1
{[%clk 0:00:42.7]} 33... Qe3 {[%clk 0:00:16.7]} 34. b3 {[%clk 0:00:33.1]} 34...
Be6 {[%clk 0:00:16.4]} 35. Re2 {[%clk 0:00:20.6]} 35... Qxf4 {[%clk 0:00:14.1]}
36. a3 {[%clk 0:00:12.3]} 36... Bf5 {[%clk 0:00:13.9]} 37. Qd2 {[%clk
0:00:10.6]} 37... Nc1+ {[%clk 0:00:10.9]} 38. Kb2 {[%clk 0:00:09.5]} 38... Rxd2+
{[%clk 0:00:10.2]} 39. Rxd2 {[%clk 0:00:10.2]} 39... Nd3+ {[%clk 0:00:10]} 40.
Ka2 {[%clk 0:00:09.1]} 40... Rxc3 {[%clk 0:00:08.6]} 41. Rad1 {[%clk 0:00:09.8]}
41... Qc7 {[%clk 0:00:06.9]} 42. Nd4 {[%clk 0:00:07.3]} 42... Bg6 {[%clk
0:00:06.1]} 43. h4 {[%clk 0:00:07.2]} 43... Qc5 {[%clk 0:00:06.2]} 44. h5 {[%clk
0:00:05.5]} 44... Qxd4 {[%clk 0:00:06]} 45. hxg6 {[%clk 0:00:05.7]} 45... fxg6
{[%clk 0:00:06.6]} 46. Re2 {[%clk 0:00:05.8]} 46... a5 {[%clk 0:00:06.9]} 47.
Red2 {[%clk 0:00:05.7]} 47... Ka7 {[%clk 0:00:07]} 48. a4 {[%clk 0:00:05.1]}
48... Qb4 {[%clk 0:00:06.2]} 49. Rb1 {[%clk 0:00:03.8]} 49... Nc5 {[%clk
0:00:06.7]} 50. Rdb2 {[%clk 0:00:03.7]} 50... Nxa4 {[%clk 0:00:06.5]} 51. Rf2
{[%clk 0:00:03.2]} 51... Nc5 {[%clk 0:00:07]} 52. Rfb2 {[%clk 0:00:03.5]} 52...
a4 {[%clk 0:00:07.1]} 0-1

[Event "Late-Titled-Tuesday-Blitz-September-05-2023"]
[Site "Chess.com"]
[Date "2023.09.05"]
[Round "9"]
[White "vanyakuba"]
[Black "2k28Lakers"]
[Result "0-1"]
[WhiteElo "2413"]
[BlackElo "2538"]
[TimeControl "180+1"]
[EndTime "15:46:12 PDT"]
[Termination "2k28Lakers won on time"]

1. e4 {[%clk 0:03:00.9]} 1... e5 {[%clk 0:02:59.3]} 2. Nf3 {[%clk 0:02:57.6]}
2... Nc6 {[%clk 0:02:59.9]} 3. Bb5 {[%clk 0:02:56.6]} 3... a6 {[%clk 0:03:00]}
4. Ba4 {[%clk 0:02:50.5]} 4... Nf6 {[%clk 0:03:00.1]} 5. d3 {[%clk 0:02:50.2]}
5... d6 {[%clk 0:02:58.3]} 6. c3 {[%clk 0:02:49.4]} 6... g6 {[%clk 0:02:58.2]}
7. Nbd2 {[%clk 0:02:41.9]} 7... Bg7 {[%clk 0:02:58.2]} 8. h3 {[%clk 0:02:38.8]}
8... O-O {[%clk 0:02:58.4]} 9. O-O {[%clk 0:02:38.5]} 9... Nd7 {[%clk
0:02:58.3]} 10. b4 {[%clk 0:02:24.7]} 10... h6 {[%clk 0:02:55.6]} 11. Bb3 {[%clk
0:02:18.8]} 11... Ne7 {[%clk 0:02:53.5]} 12. a4 {[%clk 0:02:16.5]} 12... Kh8
{[%clk 0:02:50]} 13. Nc4 {[%clk 0:02:00.5]} 13... f5 {[%clk 0:02:49.4]} 14. exf5
{[%clk 0:01:46.2]} 14... Nxf5 {[%clk 0:02:44.2]} 15. Ne3 {[%clk 0:01:35.7]}
15... c6 {[%clk 0:02:40.7]} 16. Nxf5 {[%clk 0:01:09]} 16... gxf5 {[%clk
0:02:41.6]} 17. d4 {[%clk 0:00:51.1]} 17... e4 {[%clk 0:02:41.5]} 18. Ne1 {[%clk
0:00:51.1]} 18... d5 {[%clk 0:02:37.6]} 19. Bf4 {[%clk 0:00:49.5]} 19... Rg8
{[%clk 0:02:20.7]} 20. Qh5 {[%clk 0:00:48.4]} 20... Nf6 {[%clk 0:02:17.4]} 21.
Qf7 {[%clk 0:00:38.7]} 21... Bd7 {[%clk 0:02:07.6]} 22. Nc2 {[%clk 0:00:35.7]}
22... Rf8 {[%clk 0:01:50.5]} 23. Qg6 {[%clk 0:00:27.9]} 23... Be8 {[%clk
0:01:45.8]} 24. Qg3 {[%clk 0:00:24.5]} 24... Nh5 {[%clk 0:01:41.8]} 25. Qh2
{[%clk 0:00:24.8]} 25... Nxf4 {[%clk 0:01:21.4]} 26. Qxf4 {[%clk 0:00:25.7]}
26... Qg5 {[%clk 0:01:17.1]} 27. Qc7 {[%clk 0:00:19.9]} 27... Rf7 {[%clk
0:01:10.4]} 28. Qg3 {[%clk 0:00:16.6]} 28... f4 {[%clk 0:01:05.6]} 29. Qxg5
{[%clk 0:00:16.7]} 29... hxg5 {[%clk 0:01:06.5]} 30. b5 {[%clk 0:00:14.3]} 30...
Rc8 {[%clk 0:01:00.7]} 31. Nb4 {[%clk 0:00:12.7]} 31... a5 {[%clk 0:00:53.9]}
32. Nc2 {[%clk 0:00:07.8]} 32... Rf6 {[%clk 0:00:39.5]} 33. Na3 {[%clk
0:00:04.8]} 33... Rh6 {[%clk 0:00:36.2]} 34. Rfd1 {[%clk 0:00:03.1]} 34... Bd7
{[%clk 0:00:35.3]} 35. c4 {[%clk 0:00:03.5]} 35... g4 {[%clk 0:00:31.8]} 36.
cxd5 {[%clk 0:00:03.2]} 36... cxd5 {[%clk 0:00:31.3]} 37. Bxd5 {[%clk
0:00:03.1]} 37... gxh3 {[%clk 0:00:31.6]} 38. Bxe4 {[%clk 0:00:03.3]} 38... hxg2
{[%clk 0:00:31.1]} 39. Bxg2 {[%clk 0:00:03.5]} 39... Rf8 {[%clk 0:00:30.4]} 40.
f3 {[%clk 0:00:03.2]} 40... Bf5 {[%clk 0:00:27]} 41. Nc4 {[%clk 0:00:03.4]}
41... Rc8 {[%clk 0:00:22.6]} 42. Ne5 {[%clk 0:00:03.6]} 42... Kh7 {[%clk
0:00:20.3]} 43. Rd2 {[%clk 0:00:03.2]} 43... Rc3 {[%clk 0:00:19.9]} 44. Re1
{[%clk 0:00:03.1]} 44... Ra3 {[%clk 0:00:19.2]} 45. Ng4 {[%clk 0:00:03.3]} 45...
Rd6 {[%clk 0:00:18.2]} 46. d5 {[%clk 0:00:03.5]} 46... Rd3 {[%clk 0:00:17.1]}
47. Rxd3 {[%clk 0:00:03.5]} 47... Bxd3 {[%clk 0:00:18]} 48. Ne5 {[%clk
0:00:03.5]} 48... Bf5 {[%clk 0:00:16.4]} 49. Ng4 {[%clk 0:00:02.4]} 49... Rxd5
{[%clk 0:00:15.8]} 50. Re7 {[%clk 0:00:02.9]} 50... Kg6 {[%clk 0:00:16.2]} 51.
Rxb7 {[%clk 0:00:02.7]} 51... Rd2 {[%clk 0:00:16.5]} 52. Nf2 {[%clk 0:00:02.9]}
52... Bd4 {[%clk 0:00:16.3]} 53. Kh2 {[%clk 0:00:01.4]} 53... Bxf2 {[%clk
0:00:16.4]} 54. Rb6+ {[%clk 0:00:01.3]} 54... Bxb6 {[%clk 0:00:16.5]} 0-1